[Event "Titled Tuesday Blitz May 03 Late 2022"]
[White "Korchmar, Vasiliy"]
[Black "Deac, Bogdan-Daniel"]
[WhiteFideId "24131750"]
[BlackFideId "1226380"]
[WhiteElo "2370"]
[BlackElo "2648"]
[Result "0-1"]
[Round "03"]
[TimeControl "180+1"]
[Date "2022.05.03"]
[WhiteClock "0:00:05"]
[BlackClock "0:00:53"]

1. e4 {[%clk 0:03:00]}  c5 {[%clk 0:02:59]} 2. Nf3 {[%clk 0:03:01]}  Nc6 {[%clk 0:03:00]} 3. d4 {[%clk 0:03:01]}  cxd4 {[%clk 0:03:00]} 4. Nxd4 {[%clk 0:03:02]}  Nf6 {[%clk 0:03:00]} 5. Nc3 {[%clk 0:03:02]}  e5 {[%clk 0:03:00]} 6. Ndb5 {[%clk 0:03:01]}  d6 {[%clk 0:03:00]} 7. Nd5 {[%clk 0:03:01]}  Nxd5 {[%clk 0:02:59]} 8. exd5 {[%clk 0:03:02]}  Nb8 {[%clk 0:02:59]} 9. a4 {[%clk 0:03:02]}  Be7 {[%clk 0:02:59]} 10. Be2 {[%clk 0:03:01]}  O-O {[%clk 0:02:59]} 11. O-O {[%clk 0:03:02]}  Nd7 {[%clk 0:02:59]} 12. Kh1 {[%clk 0:03:02]}  f5 {[%clk 0:02:56]} 13. f4 {[%clk 0:03:01]}  a6 {[%clk 0:02:48]} 14. Na3 {[%clk 0:03:00]}  b6 {[%clk 0:02:48]} 15. Nc4 {[%clk 0:02:56]}  Bb7 {[%clk 0:02:48]} 16. fxe5 {[%clk 0:02:31]}  Nxe5 {[%clk 0:02:43]} 17. Be3 {[%clk 0:02:06]}  Nd7 {[%clk 0:02:40]} 18. a5 {[%clk 0:01:57]}  b5 {[%clk 0:02:36]} 19. Nb6 {[%clk 0:01:56]}  Rb8 {[%clk 0:02:36]} 20. Bd3 {[%clk 0:01:54]}  g6 {[%clk 0:02:34]} 21. c4 {[%clk 0:01:39]}  bxc4 {[%clk 0:02:18]} 22. Bxc4 {[%clk 0:01:40]}  Bf6 {[%clk 0:02:19]} 23. Nxd7 {[%clk 0:01:32]}  Qxd7 {[%clk 0:02:18]} 24. Bd4 {[%clk 0:01:32]}  Qg7 {[%clk 0:02:12]} 25. Bxf6 {[%clk 0:01:31]}  Qxf6 {[%clk 0:02:13]} 26. Qd3 {[%clk 0:01:23]}  Qxb2 {[%clk 0:02:07]} 27. Bxa6 {[%clk 0:01:17]}  Ba8 {[%clk 0:02:06]} 28. Bc4 {[%clk 0:01:07]}  Qb4 {[%clk 0:01:44]} 29. a6 {[%clk 0:01:03]}  Rfc8 {[%clk 0:01:40]} 30. a7 {[%clk 0:00:59]}  Rb6 {[%clk 0:01:39]} 31. Rfb1 {[%clk 0:00:41]}  Qxc4 {[%clk 0:01:22]} 32. Qxc4 {[%clk 0:00:25]}  Rxb1+ {[%clk 0:01:21]} 33. Rxb1 {[%clk 0:00:26]}  Rxc4 {[%clk 0:01:21]} 34. h3 {[%clk 0:00:16]}  Kg7 {[%clk 0:01:03]} 35. Rb8 {[%clk 0:00:12]}  Bxd5 {[%clk 0:01:03]} 36. a8=Q {[%clk 0:00:11]}  Bxa8 {[%clk 0:01:03]} 37. Rxa8 {[%clk 0:00:12]}  h5 {[%clk 0:01:03]} 38. Rd8 {[%clk 0:00:10]}  Rd4 {[%clk 0:01:03]} 39. Kh2 {[%clk 0:00:10]}  h4 {[%clk 0:01:03]} 40. Rd7+ {[%clk 0:00:10]}  Kf6 {[%clk 0:01:02]} 41. Rd8 {[%clk 0:00:11]}  Rd2 {[%clk 0:00:58]} 42. Rd7 {[%clk 0:00:11]}  g5 {[%clk 0:00:55]} 43. Kg1 {[%clk 0:00:10]}  d5 {[%clk 0:00:55]} 44. Rd6+ {[%clk 0:00:10]}  Ke5 {[%clk 0:00:55]} 45. Rg6 {[%clk 0:00:10]}  Kf4 {[%clk 0:00:55]} 46. Ra6 {[%clk 0:00:08]}  d4 {[%clk 0:00:54]} 47. Ra4 {[%clk 0:00:05]}  Kg3 {[%clk 0:00:53]} 0-1


[Site "https://www.chess.com"]

[Event "Titled Tuesday Blitz May 03 Late 2022"]
[White "Kruckenhauser, Arthur"]
[Black "Nozdrachev, Leonid"]
[WhiteFideId "1642812"]
[BlackFideId "24113433"]
[WhiteElo "2243"]
[BlackElo "2242"]
[Result "0-1"]
[Round "03"]
[TimeControl "180+1"]
[Date "2022.05.03"]
[WhiteClock "0:00:01"]
[BlackClock "0:00:26"]

1. e4 {[%clk 0:03:00]}  Nc6 {[%clk 0:02:58]} 2. Nc3 {[%clk 0:02:58]}  d6 {[%clk 0:02:54]} 3. Nf3 {[%clk 0:02:56]}  Nf6 {[%clk 0:02:53]} 4. d4 {[%clk 0:02:56]}  e5 {[%clk 0:02:53]} 5. h3 {[%clk 0:02:52]}  exd4 {[%clk 0:02:42]} 6. Nxd4 {[%clk 0:02:53]}  Nxd4 {[%clk 0:02:42]} 7. Qxd4 {[%clk 0:02:53]}  Be7 {[%clk 0:02:38]} 8. Be3 {[%clk 0:02:50]}  O-O {[%clk 0:02:37]} 9. O-O-O {[%clk 0:02:50]}  a6 {[%clk 0:02:25]} 10. Kb1 {[%clk 0:02:49]}  b5 {[%clk 0:02:25]} 11. g4 {[%clk 0:02:31]}  Bb7 {[%clk 0:02:23]} 12. Bg2 {[%clk 0:02:31]}  Qe8 {[%clk 0:02:19]} 13. g5 {[%clk 0:02:29]}  Nd7 {[%clk 0:02:14]} 14. h4 {[%clk 0:02:28]}  Ne5 {[%clk 0:02:09]} 15. f4 {[%clk 0:02:16]}  c5 {[%clk 0:02:09]} 16. Qd2 {[%clk 0:01:59]}  Nc4 {[%clk 0:02:08]} 17. Qf2 {[%clk 0:01:53]}  Bd8 {[%clk 0:02:04]} 18. Bc1 {[%clk 0:01:52]}  Ba5 {[%clk 0:02:03]} 19. Nd5 {[%clk 0:01:49]}  Bxd5 {[%clk 0:02:01]} 20. Rxd5 {[%clk 0:01:43]}  Rd8 {[%clk 0:01:57]} 21. h5 {[%clk 0:01:40]}  Nb6 {[%clk 0:01:31]} 22. Rd3 {[%clk 0:01:38]}  c4 {[%clk 0:01:30]} 23. Rg3 {[%clk 0:01:36]}  Nd7 {[%clk 0:01:26]} 24. f5 {[%clk 0:01:13]}  Bb6 {[%clk 0:01:25]} 25. Be3 {[%clk 0:01:06]}  Bxe3 {[%clk 0:01:23]} 26. Qxe3 {[%clk 0:01:05]}  Ne5 {[%clk 0:01:20]} 27. f6 {[%clk 0:01:02]}  Qc6 {[%clk 0:00:55]} 28. fxg7 {[%clk 0:00:38]}  Kxg7 {[%clk 0:00:54]} 29. g6 {[%clk 0:00:37]}  fxg6 {[%clk 0:00:50]} 30. hxg6 {[%clk 0:00:35]}  hxg6 {[%clk 0:00:47]} 31. Qh6+ {[%clk 0:00:35]}  Kf7 {[%clk 0:00:47]} 32. Rf1+ {[%clk 0:00:25]}  Ke7 {[%clk 0:00:42]} 33. Qg5+ {[%clk 0:00:13]}  Kd7 {[%clk 0:00:40]} 34. Bh3+ {[%clk 0:00:08]}  Kc7 {[%clk 0:00:38]} 35. Qe7+ {[%clk 0:00:08]}  Nd7 {[%clk 0:00:34]} 36. Rxf8 {[%clk 0:00:05]}  Rxf8 {[%clk 0:00:35]} 37. Rg1 {[%clk 0:00:02]}  Rf3 {[%clk 0:00:29]} 38. Bg4 {[%clk 0:00:01]}  Rf4 {[%clk 0:00:26]} 0-1


[Site "https://www.chess.com"]

[Event "Titled Tuesday Blitz May 03 Late 2022"]
[White "Lehtosaari, Mauri"]
[Black "Nagy, Gabor"]
[WhiteFideId "501999"]
[BlackFideId "737119"]
[WhiteElo "2511"]
[BlackElo "2534"]
[Result "0-1"]
[Round "03"]
[TimeControl "180+1"]
[Date "2022.05.03"]
[WhiteClock "0:02:11"]
[BlackClock "0:02:37"]

1. e4 {[%clk 0:03:00]}  g6 {[%clk 0:03:00]} 2. Nc3 {[%clk 0:02:59]}  Bg7 {[%clk 0:03:01]} 3. Nf3 {[%clk 0:03:00]}  d6 {[%clk 0:03:02]} 4. Bc4 {[%clk 0:02:56]}  Nf6 {[%clk 0:03:02]} 5. d3 {[%clk 0:02:57]}  O-O {[%clk 0:03:02]} 6. Bg5 {[%clk 0:02:55]}  c6 {[%clk 0:03:02]} 7. Qd2 {[%clk 0:02:55]}  b5 {[%clk 0:03:02]} 8. Bb3 {[%clk 0:02:55]}  a5 {[%clk 0:03:03]} 9. a3 {[%clk 0:02:52]}  Na6 {[%clk 0:03:02]} 10. Ba2 {[%clk 0:02:49]}  b4 {[%clk 0:03:01]} 11. axb4 {[%clk 0:02:41]}  axb4 {[%clk 0:03:02]} 12. Ne2 {[%clk 0:02:41]}  Bg4 {[%clk 0:03:02]} 13. c3 {[%clk 0:02:31]}  Bxf3 {[%clk 0:03:01]} 14. gxf3 {[%clk 0:02:30]}  Nc5 {[%clk 0:03:01]} 15. O-O {[%clk 0:02:27]}  b3 {[%clk 0:02:59]} 16. Bxb3 {[%clk 0:02:25]}  Nxb3 {[%clk 0:02:57]} 17. Rxa8 {[%clk 0:02:26]}  Qxa8 {[%clk 0:02:48]} 18. Qc2 {[%clk 0:02:26]}  Nc5 {[%clk 0:02:46]} 19. Be3 {[%clk 0:02:25]}  Ne6 {[%clk 0:02:42]} 20. Ng3 {[%clk 0:02:23]}  Rb8 {[%clk 0:02:41]} 21. h3 {[%clk 0:02:21]}  Qb7 {[%clk 0:02:41]} 22. Rb1 {[%clk 0:02:20]}  h5 {[%clk 0:02:41]} 23. h4 {[%clk 0:02:20]}  Qb3 {[%clk 0:02:41]} 24. Qd2 {[%clk 0:02:17]}  Nd7 {[%clk 0:02:39]} 25. f4 {[%clk 0:02:16]}  Bxc3 {[%clk 0:02:38]} 26. Qe2 {[%clk 0:02:15]}  Bg7 {[%clk 0:02:35]} 27. f5 {[%clk 0:02:15]}  Nd4 {[%clk 0:02:36]} 28. Bxd4 {[%clk 0:02:11]}  Bxd4 {[%clk 0:02:36]} 29. fxg6 {[%clk 0:02:11]}  fxg6 {[%clk 0:02:37]} 0-1


[Site "https://www.chess.com"]

[Event "Titled Tuesday Blitz May 03 Late 2022"]
[White "Licznerski, Lukasz"]
[Black "Skawinski, Arkadiusz"]
[WhiteFideId "1179250"]
[BlackFideId "1126415"]
[WhiteElo "2422"]
[BlackElo "2222"]
[Result "0-1"]
[Round "03"]
[TimeControl "180+1"]
[Date "2022.05.03"]
[WhiteClock "0:00:01"]
[BlackClock "0:00:10"]

1. e4 {[%clk 0:03:00]}  e6 {[%clk 0:03:00]} 2. d4 {[%clk 0:03:00]}  d5 {[%clk 0:03:00]} 3. Nd2 {[%clk 0:03:01]}  c5 {[%clk 0:03:00]} 4. exd5 {[%clk 0:03:01]}  Qxd5 {[%clk 0:03:00]} 5. Ngf3 {[%clk 0:03:02]}  cxd4 {[%clk 0:03:01]} 6. Bc4 {[%clk 0:03:02]}  Qd7 {[%clk 0:03:01]} 7. O-O {[%clk 0:03:02]}  Nc6 {[%clk 0:03:02]} 8. Nb3 {[%clk 0:03:02]}  Nf6 {[%clk 0:03:00]} 9. Nbxd4 {[%clk 0:03:03]}  Nxd4 {[%clk 0:03:01]} 10. Nxd4 {[%clk 0:03:04]}  a6 {[%clk 0:03:01]} 11. Bb3 {[%clk 0:03:03]}  Bc5 {[%clk 0:02:57]} 12. c3 {[%clk 0:02:54]}  O-O {[%clk 0:02:47]} 13. Bg5 {[%clk 0:02:47]}  Bxd4 {[%clk 0:02:41]} 14. cxd4 {[%clk 0:02:46]}  Nd5 {[%clk 0:02:41]} 15. Qg4 {[%clk 0:02:39]}  f5 {[%clk 0:02:18]} 16. Qe2 {[%clk 0:01:24]}  h6 {[%clk 0:02:13]} 17. Bd2 {[%clk 0:01:17]}  b6 {[%clk 0:02:04]} 18. Rfe1 {[%clk 0:01:16]}  Re8 {[%clk 0:02:02]} 19. f3 {[%clk 0:00:44]}  Bb7 {[%clk 0:01:55]} 20. Rad1 {[%clk 0:00:42]}  Kh7 {[%clk 0:01:37]} 21. a3 {[%clk 0:00:41]}  Bc6 {[%clk 0:01:29]} 22. Qf2 {[%clk 0:00:40]}  Ba4 {[%clk 0:01:25]} 23. Bxd5 {[%clk 0:00:40]}  Qxd5 {[%clk 0:01:22]} 24. Rc1 {[%clk 0:00:36]}  Rac8 {[%clk 0:01:19]} 25. Bc3 {[%clk 0:00:35]}  Qd7 {[%clk 0:00:59]} 26. Re5 {[%clk 0:00:35]}  Bb3 {[%clk 0:00:55]} 27. d5 {[%clk 0:00:30]}  exd5 {[%clk 0:00:52]} 28. Rxe8 {[%clk 0:00:29]}  Qxe8 {[%clk 0:00:52]} 29. Qxb6 {[%clk 0:00:30]}  f4 {[%clk 0:00:38]} 30. Kf2 {[%clk 0:00:24]}  Rc6 {[%clk 0:00:32]} 31. Qd4 {[%clk 0:00:23]}  Qf7 {[%clk 0:00:29]} 32. Re1 {[%clk 0:00:22]}  Rg6 {[%clk 0:00:21]} 33. Qb4 {[%clk 0:00:09]}  Bc4 {[%clk 0:00:15]} 34. Re7 {[%clk 0:00:09]}  Qf5 {[%clk 0:00:15]} 35. Bd2 {[%clk 0:00:02]}  Qd3 {[%clk 0:00:14]} 36. Re1 {[%clk 0:00:01]}  Re6 {[%clk 0:00:11]} 37. Qc3 {[%clk 0:00:01]}  Re2+ {[%clk 0:00:10]} 38. Kf1 {[%clk 0:00:01]}  Rxd2+ {[%clk 0:00:10]} 0-1


[Site "https://www.chess.com"]

[Event "Titled Tuesday Blitz May 03 Late 2022"]
[White "Meduri, Aakaash"]
[Black "Gombocz, Ferenc Jr."]
[WhiteFideId "2032252"]
[BlackFideId "775029"]
[WhiteElo "2096"]
[BlackElo "1913"]
[Result "0-1"]
[Round "03"]
[TimeControl "180+1"]
[Date "2022.05.03"]
[WhiteClock "0:00:05"]
[BlackClock "0:00:15"]

1. g4 {[%clk 0:02:52]}  d5 {[%clk 0:02:59]} 2. Bg2 {[%clk 0:02:52]}  Bxg4 {[%clk 0:02:58]} 3. c4 {[%clk 0:02:52]}  Be6 {[%clk 0:02:49]} 4. Qb3 {[%clk 0:02:49]}  c6 {[%clk 0:02:13]} 5. Qxb7 {[%clk 0:02:18]}  Nd7 {[%clk 0:02:13]} 6. cxd5 {[%clk 0:02:05]}  cxd5 {[%clk 0:02:11]} 7. Nc3 {[%clk 0:01:59]}  Qc8 {[%clk 0:01:34]} 8. Qb5 {[%clk 0:01:31]}  Rb8 {[%clk 0:01:30]} 9. Qa4 {[%clk 0:01:27]}  Nf6 {[%clk 0:01:26]} 10. Nf3 {[%clk 0:01:16]}  g6 {[%clk 0:01:20]} 11. Nd4 {[%clk 0:01:07]}  Bg7 {[%clk 0:01:18]} 12. O-O {[%clk 0:00:50]}  Qc4 {[%clk 0:00:50]} 13. Nxe6 {[%clk 0:00:37]}  fxe6 {[%clk 0:00:48]} 14. Qxc4 {[%clk 0:00:28]}  dxc4 {[%clk 0:00:48]} 15. d3 {[%clk 0:00:22]}  cxd3 {[%clk 0:00:47]} 16. exd3 {[%clk 0:00:23]}  O-O {[%clk 0:00:44]} 17. Re1 {[%clk 0:00:23]}  Nc5 {[%clk 0:00:42]} 18. d4 {[%clk 0:00:19]}  Nd3 {[%clk 0:00:42]} 19. Rxe6 {[%clk 0:00:19]}  Kf7 {[%clk 0:00:41]} 20. Re2 {[%clk 0:00:17]}  Rfc8 {[%clk 0:00:34]} 21. Rd2 {[%clk 0:00:12]}  Nxc1 {[%clk 0:00:33]} 22. Rxc1 {[%clk 0:00:13]}  Bh6 {[%clk 0:00:33]} 23. Rcc2 {[%clk 0:00:11]}  Bxd2 {[%clk 0:00:32]} 24. Rxd2 {[%clk 0:00:11]}  e6 {[%clk 0:00:30]} 25. Kf1 {[%clk 0:00:10]}  Rd8 {[%clk 0:00:28]} 26. Ke2 {[%clk 0:00:09]}  Rb4 {[%clk 0:00:28]} 27. d5 {[%clk 0:00:04]}  exd5 {[%clk 0:00:26]} 28. a3 {[%clk 0:00:05]}  Rbb8 {[%clk 0:00:21]} 29. Na4 {[%clk 0:00:04]}  Ne4 {[%clk 0:00:20]} 30. Rc2 {[%clk 0:00:02]}  Re8 {[%clk 0:00:18]} 31. Ke3 {[%clk 0:00:02]}  Nc5+ {[%clk 0:00:16]} 32. Kd4 {[%clk 0:00:01]}  Nxa4 {[%clk 0:00:17]} 33. Bxd5+ {[%clk 0:00:02]}  Kg7 {[%clk 0:00:17]} 34. Rc7+ {[%clk 0:00:02]}  Kh6 {[%clk 0:00:17]} 35. Rxa7 {[%clk 0:00:01]}  Nxb2 {[%clk 0:00:15]} 36. a4 {[%clk 0:00:02]}  Red8 {[%clk 0:00:14]} 37. a5 {[%clk 0:00:01]}  Rb5 {[%clk 0:00:15]} 38. Kc3 {[%clk 0:00:01]}  Rdxd5 {[%clk 0:00:15]} 39. Rf7 {[%clk 0:00:02]}  Na4+ {[%clk 0:00:15]} 40. Kc4 {[%clk 0:00:02]}  Rdc5+ {[%clk 0:00:15]} 41. Kd4 {[%clk 0:00:02]}  Rxa5 {[%clk 0:00:15]} 42. f3 {[%clk 0:00:02]}  Rd5+ {[%clk 0:00:16]} 43. Ke3 {[%clk 0:00:02]}  Rac5 {[%clk 0:00:16]} 44. Kf2 {[%clk 0:00:03]}  Nc3 {[%clk 0:00:16]} 45. Kg3 {[%clk 0:00:03]}  Ne2+ {[%clk 0:00:16]} 46. Kf2 {[%clk 0:00:03]}  Nd4 {[%clk 0:00:16]} 47. Kg3 {[%clk 0:00:04]}  Rf5 {[%clk 0:00:16]} 48. Rd7 {[%clk 0:00:04]}  Rxf3+ {[%clk 0:00:16]} 49. Kg4 {[%clk 0:00:04]}  Rg5+ {[%clk 0:00:15]} 50. Kh4 {[%clk 0:00:05]}  Nf5# {[%clk 0:00:15]} 0-1


[Site "https://www.chess.com"]

[Event "Titled Tuesday Blitz May 03 Late 2022"]
[White "Mekhane, Adam"]
[Black "Mirzoev, Azer"]
[WhiteFideId "36050601"]
[BlackFideId "13400304"]
[WhiteElo "2002"]
[BlackElo "2525"]
[Result "1-0"]
[Round "03"]
[TimeControl "180+1"]
[Date "2022.05.03"]
[WhiteClock "0:00:13"]
[BlackClock "0:00:09"]

1. e4 {[%clk 0:03:00]}  c5 {[%clk 0:03:00]} 2. Nf3 {[%clk 0:03:00]}  d6 {[%clk 0:03:01]} 3. d4 {[%clk 0:03:01]}  cxd4 {[%clk 0:03:01]} 4. Nxd4 {[%clk 0:03:01]}  Nf6 {[%clk 0:03:01]} 5. Nc3 {[%clk 0:03:01]}  a6 {[%clk 0:03:01]} 6. b3 {[%clk 0:02:58]}  b5 {[%clk 0:03:00]} 7. Bb2 {[%clk 0:02:53]}  Bb7 {[%clk 0:03:00]} 8. Qe2 {[%clk 0:02:38]}  e6 {[%clk 0:02:55]} 9. O-O-O {[%clk 0:02:38]}  Nbd7 {[%clk 0:02:55]} 10. f4 {[%clk 0:02:32]}  b4 {[%clk 0:02:53]} 11. Nd5 {[%clk 0:02:33]}  Qa5 {[%clk 0:02:39]} 12. Nxf6+ {[%clk 0:02:04]}  Nxf6 {[%clk 0:02:38]} 13. e5 {[%clk 0:02:05]}  dxe5 {[%clk 0:02:38]} 14. fxe5 {[%clk 0:01:52]}  Nd5 {[%clk 0:02:37]} 15. Qg4 {[%clk 0:01:34]}  h5 {[%clk 0:02:25]} 16. Qh3 {[%clk 0:01:32]}  Be7 {[%clk 0:02:18]} 17. Nxe6 {[%clk 0:01:28]}  fxe6 {[%clk 0:02:18]} 18. Qxe6 {[%clk 0:01:28]}  Qb6 {[%clk 0:02:16]} 19. Qf5 {[%clk 0:01:21]}  Ne3 {[%clk 0:02:07]} 20. Qd7+ {[%clk 0:01:19]}  Kf8 {[%clk 0:02:04]} 21. Bc4 {[%clk 0:01:13]}  Nxd1 {[%clk 0:01:55]} 22. Qf5+ {[%clk 0:00:46]}  Bf6 {[%clk 0:00:58]} 23. exf6 {[%clk 0:00:38]}  Nxb2 {[%clk 0:00:57]} 24. Qd7 {[%clk 0:00:17]}  Qxf6 {[%clk 0:00:14]} 25. Rf1 {[%clk 0:00:16]}  Nxc4 {[%clk 0:00:11]} 26. Rxf6+ {[%clk 0:00:16]}  gxf6 {[%clk 0:00:11]} 27. Qxb7 {[%clk 0:00:17]}  Rd8 {[%clk 0:00:10]} 28. bxc4 {[%clk 0:00:17]}  a5 {[%clk 0:00:09]} 29. Qc7 {[%clk 0:00:16]}  Re8 {[%clk 0:00:09]} 30. Qd7 {[%clk 0:00:13]}  Re7 {[%clk 0:00:09]} 31. Qd8+ {[%clk 0:00:13]}  Kg7 {[%clk 0:00:09]} 32. Qxe7+ {[%clk 0:00:13]} 1-0


[Site "https://www.chess.com"]

[Event "Titled Tuesday Blitz May 03 Late 2022"]
[White "Melaugh, Shane"]
[Black "Suder, Jakub"]
[WhiteFideId "2509580"]
[BlackFideId "1195310"]
[WhiteElo "1972"]
[BlackElo "2058"]
[Result "0-1"]
[Round "03"]
[TimeControl "180+1"]
[Date "2022.05.03"]
[WhiteClock "0:00:05"]
[BlackClock "0:00:21"]

1. e4 {[%clk 0:03:00]}  c5 {[%clk 0:03:00]} 2. c4 {[%clk 0:03:00]}  Nc6 {[%clk 0:02:59]} 3. Nc3 {[%clk 0:03:01]}  e6 {[%clk 0:02:57]} 4. g3 {[%clk 0:03:00]}  Nge7 {[%clk 0:02:57]} 5. Bg2 {[%clk 0:03:00]}  g6 {[%clk 0:02:57]} 6. Nge2 {[%clk 0:03:01]}  Bg7 {[%clk 0:02:57]} 7. O-O {[%clk 0:03:02]}  O-O {[%clk 0:02:57]} 8. d3 {[%clk 0:03:02]}  d6 {[%clk 0:02:58]} 9. a3 {[%clk 0:02:59]}  a6 {[%clk 0:02:57]} 10. Rb1 {[%clk 0:02:59]}  Rb8 {[%clk 0:02:58]} 11. b4 {[%clk 0:02:59]}  cxb4 {[%clk 0:02:56]} 12. axb4 {[%clk 0:03:00]}  b5 {[%clk 0:02:56]} 13. cxb5 {[%clk 0:02:59]}  axb5 {[%clk 0:02:56]} 14. d4 {[%clk 0:02:57]}  e5 {[%clk 0:02:50]} 15. d5 {[%clk 0:02:52]}  Nd4 {[%clk 0:02:50]} 16. Be3 {[%clk 0:02:51]}  Qb6 {[%clk 0:02:38]} 17. Qd3 {[%clk 0:02:41]}  Bd7 {[%clk 0:02:33]} 18. Rfd1 {[%clk 0:02:40]}  Nxe2+ {[%clk 0:02:34]} 19. Nxe2 {[%clk 0:02:33]}  Qb7 {[%clk 0:02:34]} 20. Ra1 {[%clk 0:02:30]}  f5 {[%clk 0:02:33]} 21. Ra7 {[%clk 0:02:29]}  Qc8 {[%clk 0:02:32]} 22. Rc1 {[%clk 0:02:30]}  Qe8 {[%clk 0:02:28]} 23. Rcc7 {[%clk 0:02:30]}  Rd8 {[%clk 0:02:28]} 24. Bb6 {[%clk 0:02:04]}  Nc8 {[%clk 0:02:06]} 25. Rab7 {[%clk 0:01:53]}  Nxb6 {[%clk 0:02:05]} 26. Rxb6 {[%clk 0:01:54]}  f4 {[%clk 0:01:50]} 27. Rxd6 {[%clk 0:01:40]}  Qe7 {[%clk 0:01:50]} 28. Ra6 {[%clk 0:00:51]}  Qxb4 {[%clk 0:01:48]} 29. Raa7 {[%clk 0:00:47]}  Qe1+ {[%clk 0:01:36]} 30. Bf1 {[%clk 0:00:46]}  fxg3 {[%clk 0:01:29]} 31. Qxg3 {[%clk 0:00:41]}  Rf7 {[%clk 0:01:28]} 32. Rc1 {[%clk 0:00:27]}  Qd2 {[%clk 0:01:22]} 33. Rac7 {[%clk 0:00:24]}  b4 {[%clk 0:01:16]} 34. R1c2 {[%clk 0:00:24]}  Qd1 {[%clk 0:01:13]} 35. Rc1 {[%clk 0:00:24]}  Qa4 {[%clk 0:01:10]} 36. Qg5 {[%clk 0:00:23]}  Bf6 {[%clk 0:01:09]} 37. Qd2 {[%clk 0:00:21]}  b3 {[%clk 0:01:07]} 38. Ng3 {[%clk 0:00:21]}  Rdf8 {[%clk 0:00:59]} 39. R7c4 {[%clk 0:00:20]}  Qa7 {[%clk 0:00:55]} 40. Rc7 {[%clk 0:00:19]}  Qa4 {[%clk 0:00:55]} 41. R7c4 {[%clk 0:00:19]}  Qa3 {[%clk 0:00:54]} 42. R4c3 {[%clk 0:00:14]}  Bd8 {[%clk 0:00:49]} 43. Qe3 {[%clk 0:00:07]}  Ba4 {[%clk 0:00:41]} 44. Bc4 {[%clk 0:00:05]}  Qb4 {[%clk 0:00:40]} 45. d6 {[%clk 0:00:06]}  b2 {[%clk 0:00:37]} 46. Bxf7+ {[%clk 0:00:06]}  Rxf7 {[%clk 0:00:37]} 47. Rb1 {[%clk 0:00:06]}  Bb6 {[%clk 0:00:37]} 48. Rc8+ {[%clk 0:00:05]}  Kg7 {[%clk 0:00:34]} 49. Qg5 {[%clk 0:00:06]}  Bxf2+ {[%clk 0:00:31]} 50. Kh1 {[%clk 0:00:07]}  Bxg3 {[%clk 0:00:31]} 51. hxg3 {[%clk 0:00:06]}  Qxe4+ {[%clk 0:00:28]} 52. Kh2 {[%clk 0:00:06]}  Qxb1 {[%clk 0:00:27]} 53. Qd8 {[%clk 0:00:06]}  Qc2+ {[%clk 0:00:24]} 54. Kh3 {[%clk 0:00:06]}  Qxc8+ {[%clk 0:00:20]} 55. Qxc8 {[%clk 0:00:05]}  Bd7+ {[%clk 0:00:20]} 56. Qxd7 {[%clk 0:00:05]}  Rxd7 {[%clk 0:00:21]} 0-1


[Site "https://www.chess.com"]

[Event "Titled Tuesday Blitz May 03 Late 2022"]
[White "Milanovic, Marko"]
[Black "Mikhalsky, Vladimir"]
[WhiteFideId "980129"]
[BlackFideId "14144352"]
[WhiteElo "2159"]
[BlackElo "2301"]
[Result "1-0"]
[Round "03"]
[TimeControl "180+1"]
[Date "2022.05.03"]
[WhiteClock "0:00:33"]
[BlackClock "0:00:18"]

1. d4 {[%clk 0:03:00]}  Nf6 {[%clk 0:02:51]} 2. Bf4 {[%clk 0:03:00]}  g6 {[%clk 0:02:49]} 3. Nf3 {[%clk 0:02:48]}  Bg7 {[%clk 0:02:47]} 4. e3 {[%clk 0:02:46]}  O-O {[%clk 0:02:45]} 5. Be2 {[%clk 0:02:45]}  d6 {[%clk 0:02:43]} 6. O-O {[%clk 0:02:40]}  Nfd7 {[%clk 0:02:42]} 7. h3 {[%clk 0:02:37]}  e5 {[%clk 0:02:41]} 8. Bg5 {[%clk 0:02:35]}  Qe8 {[%clk 0:02:36]} 9. Nc3 {[%clk 0:02:32]}  c6 {[%clk 0:02:35]} 10. a4 {[%clk 0:02:19]}  a5 {[%clk 0:02:33]} 11. dxe5 {[%clk 0:02:14]}  dxe5 {[%clk 0:02:32]} 12. Qd6 {[%clk 0:02:08]}  Na6 {[%clk 0:02:31]} 13. Be7 {[%clk 0:02:06]}  Nb4 {[%clk 0:02:28]} 14. Bxf8 {[%clk 0:02:03]}  Bxf8 {[%clk 0:02:24]} 15. Qd2 {[%clk 0:02:01]}  Nc5 {[%clk 0:02:17]} 16. Bc4 {[%clk 0:01:52]}  h6 {[%clk 0:02:10]} 17. e4 {[%clk 0:01:41]}  Be6 {[%clk 0:01:45]} 18. Nxe5 {[%clk 0:01:37]}  Bxc4 {[%clk 0:01:44]} 19. Nxc4 {[%clk 0:01:38]}  Nxe4 {[%clk 0:01:44]} 20. Qe3 {[%clk 0:01:20]}  Nxc3 {[%clk 0:01:41]} 21. Qxc3 {[%clk 0:01:21]}  Bg7 {[%clk 0:01:38]} 22. Qb3 {[%clk 0:01:19]}  Qe6 {[%clk 0:01:05]} 23. Rfe1 {[%clk 0:01:14]}  Qd5 {[%clk 0:01:01]} 24. Rad1 {[%clk 0:01:03]}  Qc5 {[%clk 0:01:00]} 25. Rd7 {[%clk 0:00:58]}  b5 {[%clk 0:00:47]} 26. Ne5 {[%clk 0:00:47]}  Nd5 {[%clk 0:00:39]} 27. axb5 {[%clk 0:00:41]}  Rb8 {[%clk 0:00:24]} 28. Nxc6 {[%clk 0:00:35]}  Rxb5 {[%clk 0:00:18]} 29. Qxd5 {[%clk 0:00:33]} 1-0


[Site "https://www.chess.com"]

[Event "Titled Tuesday Blitz May 03 Late 2022"]
[White "Mirza, Diana"]
[Black "Diaz, Fernando"]
[WhiteFideId "2503999"]
[BlackFideId "3701255"]
[WhiteElo "1813"]
[BlackElo "1934"]
[Result "0-1"]
[Round "03"]
[TimeControl "180+1"]
[Date "2022.05.03"]
[WhiteClock "0:01:56"]
[BlackClock "0:02:37"]

1. e4 {[%clk 0:03:00]}  e6 {[%clk 0:02:59]} 2. d3 {[%clk 0:02:59]}  d5 {[%clk 0:03:00]} 3. Nd2 {[%clk 0:03:00]}  Nf6 {[%clk 0:03:00]} 4. Ngf3 {[%clk 0:02:57]}  Bc5 {[%clk 0:03:00]} 5. g3 {[%clk 0:02:52]}  dxe4 {[%clk 0:02:58]} 6. dxe4 {[%clk 0:02:51]}  Ng4 {[%clk 0:02:57]} 7. Nd4 {[%clk 0:02:11]}  Nxf2 {[%clk 0:02:44]} 8. Kxf2 {[%clk 0:02:07]}  Qxd4+ {[%clk 0:02:43]} 9. Kg2 {[%clk 0:02:05]}  Qf2+ {[%clk 0:02:42]} 10. Kh3 {[%clk 0:02:00]}  e5+ {[%clk 0:02:41]} 11. g4 {[%clk 0:01:59]}  h5 {[%clk 0:02:41]} 12. Be2 {[%clk 0:01:56]}  hxg4# {[%clk 0:02:37]} 0-1


[Site "https://www.chess.com"]